bitfinex/quotes_SOLUSD_20250518
["timestamp","ask_amount","ask_price","bid_price","bid_amount"]
[1747599582764,43.28268401,165.67,165.63,6.03755358]
[1747599582972,101.03619983,165.66,165.63,6.03755358]
[1747599583161,72.49091396,165.66,165.63,6.03755358]
[1747599583362,101.03619983,165.66,165.63,6.03755358]
[1747599583558,72.49091396,165.66,165.63,6.03755358]
[1747599583785,72.49091396,165.66,165.62,6.03791812]
[1747599583964,71.58686819,165.65,165.62,6.03791812]
[1747599585384,115.78477127,165.64,165.62,6.03791812]
[1747599585574,247.6636255,165.63,165.55,15.10064892]
[1747599585774,44.19790308,165.62,165.55,41.10064892]
[1747599585969,204.36976819,165.63,165.55,41.10064892]
[1747599587577,194.36976819,165.63,165.55,41.10064892]
[1747599587772,44.19790308,165.62,165.55,47.14112007]
[1747599588090,0.90404577,165.62,165.55,47.14112007]
[1747599588261,43.29385731,165.61,165.55,47.14112007]
[1747599588465,0.90404577,165.6,165.55,47.14112007]
[1747599588664,43.29385731,165.58,165.55,21.14112007]
[1747599588902,43.29385731,165.56,165.55,6.04047115]
[1747599589196,81.3,165.55,165.49,15.10619767]
[1747599589372,43.29385731,165.53,165.49,15.10619767]
[1747599589685,44.19790308,165.54,165.49,15.10619767]
[1747599590082,0.90404577,165.54,165.47,26.0]
[1747599590387,43.29385731,165.5,165.44,21.15570598]
[1747599590590,0.90404577,165.49,165.44,47.15570598]
[1747599590763,43.29385731,165.5,165.44,47.15570598]
[1747599591188,44.19790308,165.49,165.44,47.15570598]
[1747599591392,43.29385731,165.47,165.44,6.04448742]
[1747599591693,0.90404577,165.46,165.44,6.04448742]
[1747599591891,43.29385731,165.47,165.44,6.04448742]
[1747599592081,43.29385731,165.47,165.42,21.15826381]
[1747599592572,0.90404577,165.49,165.42,21.15826381]
[1747599592768,43.29385731,165.47,165.42,21.15826381]
[1747599594592,43.29385731,165.48,165.42,21.15826381]
[1747599594795,0.90404577,165.47,165.42,21.15826381]
[1747599596290,0.90404577,165.49,165.42,21.15826381]
[1747599597006,0.90404577,165.49,165.42,51.38435497]
[1747599597299,0.90404577,165.5,165.42,51.38435497]
[1747599598096,44.19790308,165.5,165.42,51.38435497]
[1747599598396,81.3,165.53,165.45,26.0]
[1747599598594,81.3,165.55,165.49,26.0]
[1747599598980,81.3,165.55,165.51,26.0]
[1747599600693,81.3,165.55,165.54,26.0]
[1747599601209,81.3,165.55,165.52,32.04156597]
[1747599602299,82.20404577,165.54,165.52,6.04156597]
[1747599602505,81.3,165.54,165.5,15.10525149]
[1747599602679,81.3,165.53,165.5,15.10525149]
[1747599603583,81.3,165.53,165.5,41.10525149]
[1747599603980,81.3,165.58,165.5,41.10525149]
[1747599604193,81.3,165.57,165.5,41.10525149]
[1747599604595,81.3,165.57,165.5,47.14754756]
[1747599604906,124.59385731,165.57,165.5,77.35902792]
[1747599605421,81.3,165.57,165.5,77.35902792]
[1747599605579,124.59385731,165.57,165.5,47.14754756]
[1747599605787,44.19790308,165.56,165.5,47.14754756]
[1747599606406,0.90404577,165.56,165.5,47.14754756]
[1747599606905,81.3,165.55,165.5,77.35902792]
[1747599607406,81.3,165.55,165.5,47.14754756]
[1747599607588,81.3,165.55,165.5,21.14754756]
[1747599607589,124.59385731,165.54,165.5,21.14754756]
[1747599607906,81.3,165.53,165.5,21.14754756]
[1747599608279,82.20404577,165.53,165.5,21.14754756]
[1747599608703,81.3,165.53,165.5,15.10525149]
[1747599610810,0.90404577,165.52,165.49,6.04266118]
[1747599611314,214.0829,165.51,165.49,6.04266118]
[1747599611494,242.66883307,165.51,165.49,6.04266118]
[1747599611694,214.0829,165.51,165.49,6.04266118]
[1747599612708,0.90404577,165.5,165.49,6.04266118]
[1747599612904,53.08405104,165.47,165.44,15.11064086]
[1747599613097,28.58593307,165.45,165.37,30.23367137]
[1747599613297,28.58593307,165.42,165.32,13.0524]
[1747599613496,28.58593307,165.42,165.34,5.5571089]
[1747599613714,28.58593307,165.42,165.37,26.0]
[1747599613900,28.58593307,165.43,165.37,26.0]
[1747599614223,0.90404577,165.45,165.38,21.1633813]
[1747599614423,28.58593307,165.43,165.38,21.1633813]
[1747599614924,0.90404577,165.45,165.38,21.1633813]
[1747599615107,81.66998411,165.47,165.38,21.1633813]
[1747599615308,29.48997884,165.46,165.38,47.1633813]
[1747599616029,28.58593307,165.45,165.38,47.1633813]
[1747599616224,29.48997884,165.44,165.38,47.1633813]
[1747599616407,0.90404577,165.44,165.38,47.1633813]
[1747599616927,29.48997884,165.44,165.38,47.1633813]
[1747599617315,0.90404577,165.44,165.38,47.1633813]
[1747599617510,0.90404577,165.44,165.38,21.1633813]
[1747599617511,29.48997884,165.44,165.38,21.1633813]
[1747599618135,28.58593307,165.41,165.38,6.04668037]
[1747599618308,28.58593307,165.41,165.35,21.1668306]
[1747599618309,190.48405104,165.4,165.35,21.1668306]
[1747599620914,28.58593307,165.42,165.35,21.1668306]
[1747599620915,191.38809681,165.39,165.35,21.1668306]
[1747599621232,190.48405104,165.39,165.35,21.1668306]
[1747599621806,0.90404577,165.38,165.35,21.1668306]
[1747599625032,0.90404577,165.38,165.35,6.04777744]
[1747599625214,190.48405104,165.37,165.35,6.04777744]
[1747599625529,190.48405104,165.36,165.35,6.04777744]
[1747599631141,28.58593307,165.38,165.35,21.16722104]
[1747599631341,0.90404577,165.37,165.35,21.16722104]
[1747599631717,29.48997884,165.37,165.35,6.04777744]
[1747599632842,81.66998411,165.36,165.34,28.09885694]
[1747599633022,82.57402988,165.35,165.34,28.09885694]
[1747599633827,29.48997884,165.35,165.34,22.05085937]
[1747599634035,18.64964886,165.34,165.27,6.0507049]
[1747599634321,28.58593307,165.32,165.27,6.0507049]
[1747599634525,28.58593307,165.3,165.27,6.0507049]
[1747599634725,81.3,165.29,165.27,6.0507049]
[1747599634925,81.3,165.29,165.23,47.18259395]
[1747599635325,81.3,165.29,165.23,50.25237452]
[1747599635512,110.78997884,165.28,165.23,21.18259395]
[1747599635917,28.58593307,165.27,165.23,21.18259395]
[1747599636236,0.90404577,165.26,165.23,21.18259395]
[1747599636944,0.90404577,165.26,165.16,18.64964886]
[1747599636945,28.58593307,165.25,165.17,6.05436822]
[1747599637249,28.58593307,165.26,165.18,26.0]
[1747599637549,81.3,165.27,165.2,26.0]
[1747599638343,0.90404577,165.26,165.2,26.0]
[1747599638718,28.58593307,165.25,165.2,26.0]
[1747599638920,29.48997884,165.26,165.21,6.05290236]
[1747599639326,29.48997884,165.26,165.21,21.18515827]
[1747599639937,109.88593307,165.27,165.21,21.18515827]
[1747599640349,81.3,165.27,165.21,21.18515827]
[1747599640552,109.88593307,165.27,165.21,21.18515827]
[1747599640735,81.3,165.27,165.21,21.18515827]
[1747599640934,109.88593307,165.27,165.21,21.18515827]
[1747599641553,81.3,165.27,165.21,21.18515827]
[1747599641724,109.88593307,165.27,165.21,21.18515827]
[1747599641932,0.90404577,165.26,165.21,21.18515827]
[1747599642136,109.88593307,165.27,165.21,21.18515827]
[1747599642450,81.3,165.27,165.21,21.18515827]
[1747599642955,81.3,165.27,165.21,51.4496701]
[1747599643530,81.3,165.27,165.21,21.18515827]
[1747599643739,82.20404577,165.27,165.21,21.18515827]
[1747599643932,110.78997884,165.27,165.21,21.18515827]
[1747599644347,82.20404577,165.27,165.21,21.18515827]
[1747599644850,109.88593307,165.26,165.21,21.18515827]
[1747599645039,110.78997884,165.25,165.21,21.18515827]
[1747599645656,0.90404577,165.25,165.21,15.13225591]
[1747599645953,0.90404577,165.28,165.21,15.13225591]
[1747599646249,82.20404577,165.31,165.21,15.13225591]
[1747599646453,110.78997884,165.31,165.21,41.13225591]
[1747599647032,28.58593307,165.3,165.21,41.13225591]
[1747599647428,89.9251,165.36,165.26,51.43410381]
[1747599647827,118.51103307,165.36,165.26,51.43410381]
[1747599648043,0.90404577,165.35,165.26,51.43410381]
[1747599648234,29.48997884,165.35,165.26,51.43410381]
[1747599648539,28.58593307,165.31,165.26,21.17874862]
[1747599649055,0.90404577,165.3,165.26,21.17874862]
[1747599649753,0.90404577,165.3,165.23,47.18259395]
[1747599650639,29.48997884,165.3,165.23,47.18259395]
[1747599651044,29.48997884,165.3,165.23,21.18259395]
[1747599651256,18.64964886,165.29,165.23,6.0521697]
[1747599651429,0.90404577,165.28,165.23,6.0521697]
[1747599651629,29.48997884,165.28,165.21,6.05290236]
[1747599651843,28.58593307,165.27,165.21,6.05290236]
[1747599652070,0.90404577,165.26,165.21,6.05290236]
[1747599652256,29.48997884,165.26,165.21,6.05290236]
[1747599654567,28.58593307,165.25,165.18,6.05400169]
[1747599654757,0.90404577,165.24,165.18,21.18900592]
[1747599655060,28.58593307,165.23,165.18,21.18900592]
[1747599655245,28.58593307,165.24,165.18,21.18900592]
[1747599655453,28.58593307,165.25,165.18,21.18900592]
[1747599655643,0.90404577,165.24,165.18,21.18900592]
[1747599656167,38.12404577,165.29,165.18,52.66965013]
[1747599656368,28.58593307,165.28,165.18,51.45901439]
[1747599656664,71.9506,165.32,165.21,26.0]
[1747599656859,29.48997884,165.31,165.21,26.0]
[1747599657066,28.58593307,165.3,165.21,26.0]
[1747599657254,0.90404577,165.29,165.21,26.0]
[1747599657671,0.90404577,165.31,165.21,26.0]
[1747599658077,0.90404577,165.36,165.22,1.21011204]
[1747599658374,9.77464577,165.36,165.26,26.0]
[1747599658577,38.36057884,165.36,165.27,21.17746716]
[1747599659468,28.58593307,165.35,165.27,21.17746716]
[1747599659779,37.22,165.37,165.27,51.43099169]
[1747599659975,37.22,165.37,165.3,26.0]
[1747599660548,37.22,165.37,165.31,21.17234287]
[1747599660763,37.22,165.37,165.31,51.41854697]
[1747599661275,37.22,165.37,165.31,21.17234287]
[1747599662293,28.58593307,165.35,165.31,6.04924082]
[1747599662471,29.48997884,165.34,165.31,6.04924082]
[1747599662973,28.58593307,165.33,165.3,22.19256762]
[1747599663179,0.90404577,165.32,165.3,22.19256762]
[1747599663389,28.58593307,165.33,165.3,28.24200735]
[1747599663978,28.58593307,165.31,165.3,22.19256762]
[1747599664266,18.64964886,165.3,165.21,15.13188944]
[1747599664474,0.90404577,165.29,165.21,6.05290236]
[1747599664684,19.55369463,165.31,165.22,15.13134003]
[1747599664973,28.58593307,165.29,165.22,15.13134003]
[1747599665166,29.48997884,165.28,165.22,15.13134003]
[1747599665366,28.58593307,165.29,165.22,15.13134003]
[1747599665565,28.58593307,165.31,165.22,15.13134003]
[1747599665873,29.48997884,165.3,165.22,15.13134003]
[1747599666051,0.90404577,165.3,165.22,15.13134003]
[1747599667129,29.48997884,165.3,165.22,15.13134003]
[1747599667284,28.58593307,165.29,165.22,15.13134003]
[1747599667486,29.48997884,165.31,165.22,15.13134003]
[1747599667782,28.58593307,165.3,165.22,15.13134003]
[1747599668081,0.90404577,165.32,165.22,15.13134003]
[1747599668253,0.90404577,165.33,165.23,26.0]
[1747599668460,81.3,165.32,165.25,26.0]
[1747599668688,81.3,165.31,165.25,26.0]
[1747599668883,81.3,165.31,165.26,21.17874862]
[1747599669077,65.80593307,165.37,165.29,26.0]
[1747599669379,37.22,165.37,165.29,26.0]
[1747599669578,37.22,165.37,165.29,30.661]
[1747599670461,37.22,165.37,165.29,31.87057823]
[1747599671099,37.22,165.37,165.3,21.1736237]
[1747599671385,37.22,165.37,165.31,1.20953633]
[1747599671594,37.22,165.37,165.3,51.42165757]
[1747599671789,4.3338,165.45,165.33,26.0]
[1747599672096,19.20627074,165.44,165.33,27.20918505]
[1747599672386,37.22,165.45,165.37,26.0]
[1747599672767,37.22,165.45,165.39,4.661]
[1747599672971,226.34,165.5,165.43,26.0]
[1747599673180,12.55090343,165.53,165.44,21.15570598]
[1747599673385,13.4549492,165.53,165.44,21.15570598]
[1747599673584,4.06890343,165.53,165.44,21.15570598]
[1747599674090,32.6548365,165.53,165.44,21.15570598]
[1747599674267,4.06890343,165.53,165.44,21.15570598]
[1747599674687,4.06890343,165.53,165.44,51.37814311]
[1747599674997,32.6548365,165.53,165.44,51.37814311]
[1747599675371,28.58593307,165.53,165.44,21.15570598]
[1747599675573,28.58593307,165.52,165.44,21.15570598]
[1747599676289,87.33572147,165.69,165.53,18.64964886]
[1747599676472,26.0,165.66,165.56,26.0]
[1747599676670,0.90404577,165.66,165.56,26.0]
[1747599676871,29.48997884,165.66,165.56,26.0]
[1747599677184,18.64964886,165.64,165.55,6.04047115]
[1747599677365,29.48997884,165.63,165.55,6.04047115]
[1747599677686,0.90404577,165.63,165.55,21.14164904]
[1747599678076,29.48997884,165.65,165.55,21.14164904]
[1747599678304,8.5907,165.66,165.55,22.34954772]
[1747599678602,28.58593307,165.69,165.58,26.0]
[1747599678886,0.90404577,165.69,165.58,26.0]
[1747599679104,18.64964886,165.7,165.59,1.20741853]
[1747599679304,18.64964886,165.7,165.6,21.13526569]
[1747599679507,0.90404577,165.73,165.63,26.0]
[1747599680289,18.64964886,165.72,165.63,26.0]
[1747599680490,29.48997884,165.71,165.63,26.0]
[1747599680670,29.43651453,165.71,165.63,26.0]
[1747599680880,0.90404577,165.71,165.63,26.0]
[1747599681299,0.90404577,165.71,165.64,6.03718908]
[1747599681794,29.4366244,165.71,165.64,6.03718908]
[1747599682000,44.1774149,165.71,165.64,6.03718908]
[1747599682172,79.81336913,165.74,165.64,32.03718908]
[1747599682372,37.44404577,165.74,165.64,47.13016179]
[1747599682568,36.54,165.74,165.67,26.0]
[1747599682772,36.4,165.77,165.67,26.0]
[1747599682773,36.4,165.77,165.69,26.0]
[1747599683285,44.1774149,165.76,165.7,6.03500301]
[1747599683495,0.90404577,165.76,165.7,6.03500301]
[1747599683666,0.90404577,165.77,165.7,6.03500301]
[1747599684005,70.1774149,165.78,165.7,21.12251055]
[1747599684207,43.27336913,165.79,165.7,21.12251055]
[1747599684500,0.90404577,165.78,165.7,21.12251055]
[1747599685409,43.27336913,165.75,165.68,6.03573153]
[1747599685569,44.1774149,165.75,165.68,6.03573153]
[1747599686469,62.82706376,165.77,165.68,21.12506035]
[1747599686670,0.90404577,165.77,165.68,21.12506035]
[1747599686877,43.27336913,165.79,165.7,26.0]
[1747599687305,44.1774149,165.8,165.71,21.12123588]
[1747599687479,43.27336913,165.79,165.71,21.12123588]
[1747599687678,43.27336913,165.75,165.71,6.03463882]
[1747599687886,44.1774149,165.75,165.68,15.08921944]
[1747599688095,43.27336913,165.72,165.68,6.03573153]
[1747599688304,0.90404577,165.74,165.68,6.03573153]
[1747599688795,43.27336913,165.75,165.68,6.03573153]
[1747599688796,44.1774149,165.75,165.68,6.03573153]
[1747599689621,44.1774149,165.75,165.67,15.08965672]
[1747599689797,43.27336913,165.73,165.66,6.03646021]
[1747599690001,44.1774149,165.74,165.66,6.03646021]
[1747599690180,0.90404577,165.74,165.66,6.03646021]
[1747599690375,0.90404577,165.74,165.66,21.12761075]
[1747599691071,43.27336913,165.76,165.66,21.12761075]
[1747599691384,44.1774149,165.76,165.66,21.12761075]
[1747599691789,0.90404577,165.76,165.66,21.12761075]
[1747599691981,44.1774149,165.76,165.66,21.12761075]
[1747599692192,0.90404577,165.76,165.66,21.12761075]
[1747599692709,0.90404577,165.81,165.73,26.0]
[1747599692875,0.90404577,165.86,165.74,26.0]
[1747599693079,9.0102,165.87,165.74,27.20629418]
[1747599693276,43.27336913,165.85,165.74,27.20629418]
[1747599693817,9.91424577,165.87,165.78,26.0]
[1747599694185,43.27336913,165.86,165.78,26.0]
[1747599694381,43.27336913,165.84,165.75,21.11613875]
[1747599694691,18.64964886,165.86,165.75,47.11613875]
[1747599695000,43.27336913,165.86,165.76,1.20622471]
[1747599695215,53.1876149,165.87,165.76,1.20622471]
[1747599695377,43.27336913,165.86,165.76,1.20622471]
[1747599695923,43.27336913,165.85,165.77,6.0324546]
[1747599696293,44.1774149,165.84,165.77,6.0324546]
[1747599696500,35.0102,165.87,165.77,21.11359111]
[1747599696807,43.27336913,165.86,165.77,21.11359111]
[1747599697223,0.90404577,165.88,165.78,26.0]
[1747599697721,44.1774149,165.88,165.79,6.03172688]
[1747599697873,43.27336913,165.87,165.79,6.03172688]
[1747599698077,44.1774149,165.86,165.79,6.03172688]
[1747599698321,43.27336913,165.84,165.79,6.03172688]
[1747599698615,43.27336913,165.85,165.79,6.03172688]
[1747599699216,81.3,165.87,165.79,6.03172688]
[1747599699382,124.57336913,165.87,165.79,6.03172688]
[1747599699582,81.3,165.87,165.79,6.03172688]
[1747599699882,26.0,165.89,165.79,1.20608451]
[1747599700083,69.27336913,165.89,165.79,15.0793172]
[1747599700307,26.0,165.89,165.79,15.0793172]
[1747599700628,26.0,165.9,165.8,1.20597399]
[1747599700833,26.90404577,165.92,165.8,1.20597399]
[1747599701132,0.90404577,165.92,165.79,37.20404739]
[1747599701325,43.27336913,165.87,165.79,22.12473019]
[1747599701902,0.90404577,165.89,165.8,6.03136308]
[1747599701903,43.27336913,165.86,165.8,6.03136308]
[1747599702218,44.1774149,165.87,165.8,6.03136308]
[1747599702892,0.90404577,165.87,165.8,6.03136308]
[1747599703095,43.27336913,165.86,165.8,6.03136308]
[1747599703406,44.1774149,165.85,165.79,28.15641256]
[1747599703900,43.2054494,165.84,165.79,22.12473019]
[1747599704104,0.90404577,165.85,165.79,22.12473019]
[1747599704307,28.49267288,165.82,165.79,22.12473019]
[1747599704677,28.49267288,165.8,165.72,6.03427468]
[1747599704802,28.49267288,165.77,165.72,6.03427468]
[1747599705196,28.49267288,165.77,165.71,15.08633239]
[1747599705404,0.90404577,165.79,165.71,15.08633239]
[1747599705728,28.49267288,165.78,165.71,15.08633239]
[1747599705918,0.90404577,165.8,165.71,15.08633239]
[1747599706106,28.49267288,165.79,165.71,15.08633239]
[1747599706922,29.39671865,165.78,165.71,15.08633239]
[1747599707126,28.49267288,165.77,165.71,15.08633239]
[1747599707310,28.49267288,165.74,165.7,6.03500301]
[1747599707610,28.49267288,165.73,165.7,6.03500301]
[1747599708105,0.90404577,165.76,165.7,6.03500301]
[1747599709200,0.90404577,165.76,165.66,32.03646021]
[1747599709401,0.90404577,165.76,165.66,47.12761075]
[1747599710813,29.39671865,165.76,165.66,47.12761075]
[1747599711110,0.90404577,165.76,165.66,47.12761075]
[1747599711417,28.49267288,165.7,165.66,6.03646021]
[1747599711816,18.64964886,165.72,165.61,6.03828271]
[1747599712143,28.49267288,165.67,165.61,6.03828271]
[1747599712483,0.90404577,165.69,165.61,21.13398949]
[1747599712484,28.49267288,165.68,165.61,21.13398949]
[1747599713112,0.90404577,165.7,165.61,21.13398949]
[1747599713298,26.0,165.71,165.61,51.32540305]
[1747599713485,54.49267288,165.71,165.61,51.32540305]
[1747599713688,81.3,165.72,165.62,26.0]
[1747599713911,81.3,165.72,165.64,26.0]
[1747599714922,110.69671865,165.72,165.64,26.0]
[1747599715097,28.49267288,165.71,165.64,26.0]
[1747599715303,82.20404577,165.72,165.65,6.03682463]
[1747599715499,82.20404577,165.72,165.65,21.1288862]
[1747599715698,82.20404577,165.72,165.65,51.31300935]
[1747599715699,81.3,165.72,165.65,51.31300935]
[1747599716016,35.84,165.79,165.69,4.262]
[1747599716203,35.84,165.79,165.72,26.0]
[1747599717211,35.84,165.79,165.73,21.11868701]
[1747599717597,8.5272,165.77,165.7,7.24160492]
[1747599717805,28.49267288,165.71,165.7,6.03498107]
[1747599718027,28.49267288,165.71,165.68,6.03537743]
[1747599718223,28.49267288,165.69,165.65,6.03682463]
[1747599718421,28.49267288,165.67,165.65,6.03682463]
[1747599719315,82.20404577,165.7,165.62,21.13271343]
[1747599719518,28.49267288,165.68,165.62,21.13271343]
[1747599719694,28.49267288,165.67,165.62,21.13271343]
[1747599719905,0.90404577,165.68,165.62,21.13271343]
[1747599720099,29.39671865,165.68,165.62,21.13271343]
[1747599720404,0.90404577,165.68,165.62,6.03791812]
[1747599720742,28.49267288,165.63,165.59,6.03901201]
[1747599720909,28.49267288,165.6,165.58,28.19342123]
[1747599721227,0.90404577,165.62,165.47,36.78787746]
[1747599721228,28.49267288,165.59,165.49,4.268]
[1747599721434,81.3,165.61,165.53,26.0]
[1747599721435,146.53671865,165.61,165.53,26.0]
[1747599721633,28.49267288,165.6,165.53,26.0]
[1747599722123,29.39671865,165.59,165.53,26.0]
[1747599722314,28.49267288,165.59,165.53,26.0]
[1747599722531,117.14,165.61,165.51,22.16216385]
[1747599722532,29.39671865,165.58,165.51,22.16216385]
[1747599722834,29.39671865,165.58,165.51,48.16216385]
[1747599723339,29.39671865,165.58,165.52,21.1454809]
[1747599723548,0.90404577,165.58,165.52,21.1454809]
[1747599723848,117.14,165.61,165.52,51.35331076]
[1747599724045,28.49267288,165.57,165.52,21.1454809]
[1747599724257,110.69671865,165.56,165.52,6.04156597]
[1747599724939,28.49267288,165.55,165.52,6.04156597]
[1747599725242,82.20404577,165.54,165.52,6.04156597]
[1747599725437,110.69671865,165.54,165.52,6.04156597]
[1747599725940,82.20404577,165.54,165.52,6.04156597]
[1747599726140,82.20404577,165.54,165.51,28.20403116]
[1747599726343,28.49267288,165.52,165.51,22.16216385]
[1747599726842,28.49267288,165.52,165.51,28.20409485]
[1747599727040,28.49267288,165.52,165.46,15.10922487]
[1747599727348,0.90404577,165.52,165.44,30.22243117]
[1747599727644,29.39671865,165.54,165.44,30.22243117]
[1747599727834,28.49267288,165.51,165.43,26.0]
[1747599728039,28.49267288,165.52,165.43,26.0]
[1747599728230,0.90404577,165.54,165.43,26.0]
[1747599728415,28.49267288,165.52,165.43,26.0]
[1747599728618,28.49267288,165.51,165.43,26.0]
[1747599729015,0.90404577,165.54,165.43,26.0]
[1747599729324,28.49267288,165.52,165.44,21.15570598]
[1747599729734,29.39671865,165.51,165.44,21.15570598]
[1747599729930,0.90404577,165.54,165.44,21.15570598]
[1747599730338,28.49267288,165.52,165.44,21.15570598]
[1747599730535,0.90404577,165.51,165.44,21.15570598]
[1747599730923,29.39671865,165.51,165.44,21.15570598]
[1747599731125,0.90404577,165.51,165.44,21.15570598]
[1747599731320,28.49267288,165.52,165.44,21.15570598]
[1747599731552,0.90404577,165.54,165.44,51.37814311]
[1747599731553,29.39671865,165.54,165.44,51.37814311]
[1747599732143,81.3,165.53,165.47,26.0]
[1747599732636,238.39295594,165.7,165.51,26.0]
[1747599732834,0.90404577,165.68,165.55,26.0]
[1747599733038,28.49267288,165.67,165.56,1.20768614]
[1747599733256,12.61295594,165.7,165.56,1.20768614]
[1747599733548,0.90404577,165.68,165.57,21.13909523]
[1747599733856,28.49267288,165.66,165.57,21.13909523]
[1747599734057,0.90404577,165.67,165.57,21.13909523]
[1747599734351,59.63560483,165.69,165.57,52.54542449]
[1747599734553,28.49267288,165.67,165.57,51.33780272]
[1747599734745,29.39671865,165.67,165.57,51.33780272]
[1747599735122,28.49267288,165.64,165.57,21.13909523]
[1747599735326,29.39671865,165.64,165.57,15.09935374]
[1747599736058,0.90404577,165.64,165.57,15.09935374]
[1747599736358,28.49267288,165.64,165.57,15.09935374]
[1747599736551,0.90404577,165.63,165.57,15.09935374]
[1747599736755,29.39671865,165.63,165.57,15.09935374]
[1747599737370,26.90404577,165.63,165.53,15.10216871]
[1747599737539,28.49267288,165.62,165.53,15.10216871]
[1747599737733,0.90404577,165.63,165.54,26.0]
[1747599738069,29.39671865,165.65,165.54,26.0]
[1747599738366,0.90404577,165.65,165.54,26.0]
[1747599738770,19.55369463,165.68,165.55,1.2077261]
[1747599738983,218.7,165.67,165.55,1.2077261]
[1747599739187,81.3,165.66,165.59,26.0]
[1747599739467,81.3,165.65,165.6,21.13526569]
[1747599739643,81.3,165.65,165.6,22.3426534]
[1747599740041,81.3,165.65,165.6,21.13526569]
[1747599742547,81.3,165.65,165.63,26.0]
[1747599743355,81.3,165.65,165.6,29.59896569]
[1747599743664,81.3,165.64,165.6,21.13526569]
[1747599743850,81.3,165.63,165.6,21.13526569]
[1747599744164,81.3,165.63,165.6,6.03864734]
[1747599745243,82.20404577,165.63,165.6,6.03864734]
[1747599745548,28.49267288,165.61,165.57,6.03974149]
[1747599745750,81.3,165.6,165.55,26.0]
[1747599745944,81.3,165.6,165.52,51.35331076]
[1747599746148,81.3,165.59,165.55,26.0]
[1747599747771,81.3,165.59,165.52,51.35331076]
[1747599748072,0.90404577,165.59,165.52,21.1454809]
[1747599748366,28.49267288,165.58,165.52,21.1454809]
[1747599748859,0.90404577,165.59,165.52,21.1454809]
[1747599748860,28.49267288,165.57,165.52,6.04156597]
[1747599749036,29.39671865,165.57,165.52,6.04156597]
[1747599749944,0.90404577,165.57,165.51,15.10445037]
[1747599750346,29.39671865,165.6,165.51,15.10445037]
[1747599750566,0.90404577,165.6,165.51,15.10445037]
[1747599750869,29.39671865,165.6,165.51,15.10445037]
[1747599751078,63.81267288,165.62,165.51,42.31253739]
[1747599751441,35.32,165.62,165.51,42.31253739]
[1747599751872,0.90404577,165.61,165.51,42.31253739]
[1747599752060,29.39671865,165.61,165.51,78.56412339]
[1747599752263,35.32,165.62,165.55,26.0]
[1747599752570,29.39671865,165.61,165.51,21.14638137]
[1747599752756,18.64964886,165.6,165.51,21.14638137]
[1747599752958,28.49267288,165.57,165.51,21.14638137]
[1747599753265,28.49267288,165.58,165.51,21.14638137]
[1747599753753,29.39671865,165.59,165.51,15.10445037]
[1747599753951,0.90404577,165.59,165.51,15.10445037]
[1747599754163,26.90404577,165.61,165.51,15.10445037]
[1747599754471,28.49267288,165.6,165.51,15.10445037]
[1747599754762,28.49267288,165.59,165.51,15.10445037]
[1747599755575,29.39671865,165.59,165.51,15.10445037]
[1747599756571,26.90404577,165.61,165.51,15.10445037]
[1747599757053,81.3,165.6,165.51,15.10445037]
[1747599757863,81.3,165.6,165.52,26.0]
[1747599758566,81.3,165.6,165.53,47.14420346]
[1747599758871,81.3,165.6,165.53,78.55814902]
[1747599759660,81.3,165.59,165.53,78.55814902]
[1747599759866,35.32,165.62,165.57,26.0]
[1747599760071,81.3,165.67,165.57,26.0]
[1747599760378,81.3,165.67,165.59,26.0]
[1747599760675,110.69671865,165.67,165.6,6.03864734]
[1747599761063,28.49267288,165.65,165.6,6.03864734]
[1747599761243,29.39671865,165.65,165.6,6.03864734]
[1747599761450,81.3,165.67,165.6,6.03864734]
[1747599761674,81.3,165.67,165.6,21.13526569]
[1747599761879,82.20404577,165.67,165.6,21.13526569]
[1747599762181,81.3,165.67,165.6,21.13526569]
[1747599762486,110.69671865,165.67,165.6,21.13526569]
[1747599762845,110.69671865,165.67,165.6,15.09661835]
[1747599763055,28.49267288,165.64,165.58,6.03937673]
[1747599763270,0.90404577,165.63,165.58,6.03937673]
[1747599763549,29.39671865,165.66,165.58,21.13781857]
[1747599763868,0.90404577,165.66,165.58,21.13781857]
[1747599764168,81.3,165.67,165.58,77.33470225]
[1747599764479,82.20404577,165.67,165.58,77.33470225]
[1747599764781,28.49267288,165.65,165.58,21.13781857]
[1747599764965,29.39671865,165.65,165.58,21.13781857]
[1747599765284,28.49267288,165.66,165.58,21.13781857]
[1747599766154,82.20404577,165.67,165.58,21.13781857]
[1747599766361,81.3,165.67,165.58,21.13781857]
[1747599766661,82.20404577,165.67,165.58,21.13781857]
[1747599766875,81.3,165.67,165.58,15.09844184]